bitfinex-derivatives/quotes_BTCF0:USTF0_20250901
["timestamp","ask_amount","ask_price","bid_price","bid_amount"]
[1756768807376,0.331,108790.0,108780.0,1.26053384]
[1756768807777,0.331,108790.0,108780.0,1.26049384]
[1756768810589,0.331,108790.0,108780.0,1.62129384]
[1756768813190,0.331,108790.0,108780.0,2.04683666]
[1756768813384,0.331,108790.0,108780.0,2.37683666]
[1756768813590,0.141,108790.0,108780.0,2.37683666]
[1756768813990,0.141,108790.0,108780.0,2.04683666]
[1756768814292,0.141,108790.0,108780.0,2.12854614]
[1756768814892,0.141,108790.0,108780.0,2.50854614]
[1756768817595,0.141,108790.0,108780.0,2.12854614]
[1756768818889,0.141,108790.0,108780.0,1.26266614]
[1756768819090,0.141,108790.0,108780.0,2.12802614]
[1756768819402,0.141,108790.0,108780.0,2.12343614]
[1756768819698,0.141,108790.0,108780.0,1.87343614]
[1756768820403,0.141,108790.0,108780.0,1.87802614]
[1756768821704,0.141,108790.0,108780.0,1.79631666]
[1756768822402,0.141,108790.0,108780.0,1.87802832]
[1756768826100,0.141,108790.0,108780.0,2.27995242]
[1756768826304,0.001,108790.0,108780.0,2.27995242]
[1756768826702,0.001,108790.0,108780.0,1.01266832]
[1756768827003,0.001,108790.0,108780.0,1.87766832]
[1756768828100,0.001,108790.0,108780.0,1.79595666]
[1756768828296,0.00040963,108810.0,108800.0,0.06231]
[1756768828497,0.33040963,108810.0,108800.0,1.26866863]
[1756768828808,0.05040963,108810.0,108800.0,1.96237926]
[1756768829001,0.00040963,108810.0,108800.0,1.80509666]
[1756768829197,0.00040963,108810.0,108800.0,0.70841038]
[1756768829396,0.00240963,108810.0,108800.0,1.57325038]
[1756768829900,0.00240963,108810.0,108800.0,1.57321038]
[1756768830605,0.00240963,108810.0,108800.0,0.70841038]
[1756768830807,0.00240963,108810.0,108800.0,1.57317038]
[1756768831002,0.00240963,108810.0,108800.0,1.65488951]
[1756768832493,0.00240963,108810.0,108800.0,0.62179537]
[1756768832795,0.00240963,108810.0,108800.0,1.7275187]
[1756768835303,0.00240963,108810.0,108800.0,0.8627987]
[1756768835498,0.00240963,108810.0,108800.0,1.7272387]
[1756768835910,0.00040963,108810.0,108800.0,1.7272387]
[1756768836110,0.00140963,108810.0,108800.0,1.7272387]
[1756768836907,0.00140963,108810.0,108800.0,1.48623537]
[1756768837109,0.00140963,108810.0,108800.0,1.7272387]
[1756768838109,0.00140963,108810.0,108800.0,1.7318287]
[1756768838410,0.81241296,108810.0,108800.0,1.03898919]
[1756768838598,1.17321296,108810.0,108800.0,1.10429917]
[1756768838916,0.93220963,108810.0,108800.0,1.03898919]
[1756768839209,0.93220963,108810.0,108800.0,0.17466919]
[1756768839405,1.17321296,108810.0,108800.0,0.19102917]
[1756768839809,1.17321296,108810.0,108800.0,0.12571919]
[1756768840109,1.17321296,108810.0,108800.0,0.07725919]
[1756768840314,1.41421629,108810.0,108800.0,0.00459]
[1756768840606,1.17321296,108810.0,108800.0,0.00459]
[1756768841812,1.17321296,108810.0,108800.0,0.10191]
[1756768842004,0.93220963,108810.0,108800.0,0.10191]
[1756768842200,0.68220963,108810.0,108800.0,0.34291333]
[1756768842807,0.68220963,108810.0,108800.0,0.02769]
[1756768843214,0.92321296,108810.0,108800.0,0.0524]
[1756768843610,0.92321296,108810.0,108800.0,0.02769]
[1756768843811,1.17321296,108810.0,108800.0,0.00459]
[1756768844713,0.68220963,108810.0,108800.0,0.34291333]
[1756768844909,0.92321296,108810.0,108800.0,0.00459]
[1756768845115,0.92321296,108810.0,108800.0,0.02769]
[1756768845513,1.17321296,108810.0,108800.0,0.02769]
[1756768845710,1.17321296,108810.0,108800.0,0.00459]
[1756768846109,1.17321296,108810.0,108800.0,0.02769]
[1756768848516,1.17321296,108810.0,108800.0,0.00459]
[1756768848708,1.17321296,108810.0,108800.0,0.02769]
[1756768849315,1.17321296,108810.0,108800.0,0.00459]
[1756768849814,1.17321296,108810.0,108800.0,0.02769]
[1756768850418,1.17321296,108810.0,108800.0,0.00459]
[1756768852419,2.03693296,108810.0,108800.0,0.02769]
[1756768852631,2.03693296,108810.0,108800.0,0.00459]
[1756768853531,2.27793629,108810.0,108780.0,0.06530998]
[1756768853713,0.96260333,108790.0,108780.0,0.06530998]
[1756768853918,2.19519536,108790.0,108780.0,0.06530998]
[1756768854216,2.44519536,108790.0,108760.0,0.11311998]
[1756768854424,0.3608,108770.0,108760.0,0.14828998]
[1756768854625,0.7108,108770.0,108760.0,0.14828998]
[1756768855127,0.95180333,108770.0,108760.0,0.11311998]
[1756768855327,1.81544333,108770.0,108760.0,0.11611998]
[1756768855626,1.81544333,108770.0,108760.0,0.09240998]
[1756768856223,1.81544333,108770.0,108760.0,0.06930998]
[1756768856224,1.57444,108770.0,108760.0,0.06930998]
[1756768856421,1.81544333,108770.0,108760.0,0.06930998]
[1756768857227,1.81544333,108770.0,108760.0,0.06830998]
[1756768857427,1.81644333,108770.0,108760.0,0.003]
[1756768857628,1.81640333,108770.0,108760.0,0.0231]
[1756768857823,1.81640333,108770.0,108750.0,0.18789097]
[1756768858028,0.3608,108760.0,108750.0,0.18789097]
[1756768858228,0.3808,108760.0,108750.0,0.12258099]
[1756768858429,0.3608,108760.0,108750.0,0.12258099]
[1756768858629,0.7408,108760.0,108750.0,0.12258099]
[1756768859431,0.3808,108760.0,108750.0,0.12358099]
[1756768860133,0.7308,108760.0,108750.0,0.12358099]
[1756768860330,0.3808,108760.0,108750.0,0.12358099]
[1756768860930,0.3608,108760.0,108750.0,0.12358099]
[1756768861127,0.6808,108760.0,108750.0,0.12358099]
[1756768862127,0.92180333,108760.0,108750.0,0.02621099]
[1756768862430,0.6808,108760.0,108750.0,0.04931099]
[1756768862623,1.23424,108760.0,108750.0,0.12353099]
[1756768862931,0.6708,108760.0,108750.0,0.12353099]
[1756768863121,1.53424,108760.0,108750.0,0.12353099]
[1756768863932,0.6708,108760.0,108750.0,0.12353099]
[1756768865834,0.6708,108760.0,108750.0,0.36453432]
[1756768866823,0.6708,108760.0,108750.0,0.12353099]
[1756768867029,0.6708,108760.0,108750.0,0.36453432]
[1756768867230,0.6708,108760.0,108750.0,0.12353099]
[1756768867430,0.6708,108760.0,108750.0,0.36453432]
[1756768868733,0.3608,108760.0,108750.0,0.36453432]
[1756768869037,0.94180333,108760.0,108750.0,0.05214]
[1756768870537,0.94180333,108760.0,108750.0,0.00559]
[1756768872336,1.19180333,108760.0,108750.0,0.00559]
[1756768872735,1.43280666,108760.0,108750.0,0.00559]
[1756768873326,1.43280666,108760.0,108750.0,0.001]
[1756768874636,1.19280333,108760.0,108750.0,0.001]
[1756768874839,1.80596333,108760.0,108750.0,0.001]
[1756768875151,1.80896333,108760.0,108730.0,0.08626]
[1756768875336,0.3608,108740.0,108730.0,0.08626]
[1756768875537,0.7008,108740.0,108730.0,0.08626]
[1756768876340,0.94180333,108740.0,108730.0,0.08626]
[1756768876535,0.94280333,108740.0,108730.0,0.08626]
[1756768876939,1.80592333,108740.0,108730.0,0.08626]
[1756768877134,1.80692333,108740.0,108730.0,0.08626]
[1756768877539,0.94380333,108740.0,108730.0,0.08626]
[1756768882657,1.30460333,108740.0,108730.0,0.00459]
[1756768884452,1.55460333,108740.0,108730.0,0.00459]
[1756768884654,1.79560666,108740.0,108700.0,0.09565]
[1756768884955,0.60180333,108710.0,108690.0,2.90534998]
[1756768885154,0.24100333,108700.0,108690.0,2.90534998]
[1756768885341,0.35,108700.0,108690.0,2.04254998]
[1756768885548,0.35,108700.0,108690.0,2.90534998]
[1756768885746,0.02,108700.0,108690.0,2.84004]
[1756768886057,0.34,108700.0,108690.0,2.84004]
[1756768886245,0.34,108700.0,108690.0,2.84104]
[1756768887055,0.68474093,108710.0,108700.0,0.09551]
[1756768887252,1.04474093,108710.0,108700.0,0.09551]
[1756768888161,0.3608,108710.0,108700.0,0.09551]
[1756768888365,0.37919741,108720.0,108710.0,0.08167]
[1756768888659,0.15839741,108720.0,108710.0,0.94439]
[1756768889056,0.51919741,108720.0,108710.0,0.94439]
[1756768889459,0.74019741,108720.0,108710.0,0.94439]
[1756768889655,0.98120074,108720.0,108710.0,0.94439]
[1756768890057,0.74019741,108720.0,108710.0,0.94439]
[1756768890863,0.51019741,108720.0,108710.0,0.94439]
[1756768891651,0.50919741,108720.0,108710.0,0.08167]
[1756768891853,0.51019741,108720.0,108710.0,0.94431]
[1756768892455,1.29196306,108720.0,108700.0,0.04655]
[1756768892764,1.29196306,108720.0,108690.0,1.97724]
[1756768892765,0.66256565,108710.0,108690.0,2.83984]
[1756768892952,0.3608,108700.0,108690.0,2.83984]
[1756768893155,0.3808,108700.0,108690.0,2.83984]
[1756768894362,0.3808,108700.0,108690.0,2.8398]
[1756768894863,0.7308,108700.0,108690.0,2.8418]
[1756768895162,2.14516565,108700.0,108680.0,0.02383]
[1756768895460,0.3608,108690.0,108680.0,0.08316]
[1756768895665,0.38,108690.0,108680.0,0.94572]
[1756768895856,0.7408,108690.0,108680.0,0.08316]
[1756768896061,0.38,108690.0,108680.0,1.85828565]
[1756768896250,0.18,108690.0,108680.0,1.85824565]
[1756768896453,0.18,108690.0,108680.0,0.99572565]
[1756768896655,0.18,108690.0,108680.0,1.55748]
[1756768896855,0.18,108690.0,108680.0,0.69496]
[1756768897055,0.18,108690.0,108680.0,1.55752]
[1756768897258,0.18,108690.0,108680.0,1.55952]
[1756768897848,0.18,108690.0,108680.0,1.55752]
[1756768898056,0.18,108690.0,108680.0,1.86128565]
[1756768898252,0.3791922,108710.0,108700.0,0.05064]
[1756768898451,0.7491922,108710.0,108700.0,0.96]
[1756768898661,0.7491922,108710.0,108700.0,1.26172565]
[1756768899066,0.3883922,108710.0,108700.0,1.62252565]
[1756768899462,0.3893922,108710.0,108700.0,1.62252565]
[1756768900763,0.3893922,108710.0,108700.0,1.62248565]
[1756768900963,0.3893922,108710.0,108700.0,1.32072]
[1756768903574,0.3893922,108710.0,108700.0,1.32064]
[1756768904164,0.3893922,108710.0,108700.0,0.45828]
[1756768904472,0.3893922,108710.0,108700.0,1.3206]
[1756768905972,0.3893922,108710.0,108700.0,0.9598]
[1756768906177,0.7501922,108710.0,108700.0,0.9598]
[1756768906771,0.7501922,108710.0,108700.0,0.95968]
[1756768907173,0.7501922,108710.0,108700.0,1.26144565]
[1756768907863,0.371,108710.0,108700.0,1.62224565]
[1756768908068,0.171,108710.0,108700.0,1.64246503]
[1756768908275,0.171,108710.0,108700.0,1.89246503]
[1756768908276,0.001,108710.0,108700.0,1.89246503]
[1756768908572,0.001,108710.0,108700.0,1.89242503]
[1756768909278,0.001,108710.0,108700.0,1.89342503]
[1756768909874,0.43411927,108730.0,108700.0,1.85810503]
[1756768910075,0.43411927,108730.0,108720.0,0.08316]
[1756768910076,0.81411927,108730.0,108720.0,0.08316]
[1756768910272,0.82334983,108730.0,108720.0,0.94524]
[1756768911581,0.82534983,108730.0,108720.0,0.94524]
[1756768912277,0.82534983,108730.0,108720.0,0.9452]
[1756768912477,0.82734983,108730.0,108720.0,0.9452]
[1756768912978,0.82734983,108730.0,108720.0,0.08316]
[1756768913177,1.12911548,108730.0,108720.0,0.94512]
[1756768913777,0.82734983,108730.0,108720.0,0.94512]
[1756768914576,0.81811927,108730.0,108720.0,0.94512]
[1756768915077,0.82751609,108730.0,108720.0,0.94508]
[1756768917284,0.82751609,108730.0,108720.0,0.08316]
[1756768917479,0.82751609,108730.0,108720.0,0.94496]
[1756768917778,1.12928174,108730.0,108720.0,0.94496]
[1756768919770,1.39821052,108730.0,108710.0,1.01014998]
[1756768919971,0.66256565,108720.0,108710.0,0.06530998]
[1756768920166,0.99256565,108720.0,108700.0,0.16278998]
[1756768920375,0.66256565,108710.0,108700.0,0.97378998]
[1756768920673,1.03149791,108710.0,108700.0,0.95077998]
[1756768920873,1.03149791,108710.0,108700.0,0.08913998]
[1756768921777,1.03149791,108710.0,108700.0,0.02483]
[1756768922485,1.03149791,108710.0,108700.0,0.001]
[1756768923079,1.03149791,108710.0,108700.0,0.06630998]
[1756768923479,1.89309791,108710.0,108700.0,0.06630998]
[1756768924075,1.89409791,108710.0,108690.0,1.01002998]
[1756768924381,0.66256565,108700.0,108690.0,0.14846998]
[1756768924583,1.04256565,108700.0,108690.0,1.01002998]
[1756768924783,1.04256565,108700.0,108690.0,0.11214998]
[1756768924974,1.04256565,108700.0,108690.0,0.06530998]
[1756768925174,1.04256565,108700.0,108690.0,0.06630998]
[1756768925577,1.04256565,108700.0,108690.0,0.06530998]
[1756768925782,0.3608,108700.0,108690.0,0.14889998]
[1756768926185,0.3808,108700.0,108690.0,0.14889998]
[1756768927074,0.3608,108700.0,108690.0,0.14889998]
[1756768927485,0.6708,108700.0,108690.0,1.01037998]
[1756768927694,0.97256565,108700.0,108690.0,0.11325998]
[1756768928183,0.97256565,108700.0,108690.0,0.14889998]
[1756768928484,0.97256565,108700.0,108690.0,0.11325998]
[1756768928782,0.97256565,108700.0,108690.0,0.14889998]
[1756768929177,0.97256565,108700.0,108690.0,0.11325998]
[1756768929378,1.22256565,108700.0,108690.0,0.06630998]
[1756768929571,1.22256565,108700.0,108690.0,0.001]
[1756768931276,2.08392565,108700.0,108690.0,0.001]
[1756768932085,2.02371624,108700.0,108690.0,0.001]
[1756768935380,2.26527248,108700.0,108690.0,0.001]
[1756768935579,2.02371624,108700.0,108690.0,0.001]
[1756768938191,0.9208,108700.0,108690.0,0.04795]
[1756768938394,2.02355624,108700.0,108690.0,0.08359]
[1756768938580,2.02355624,108700.0,108690.0,0.04795]
[1756768939082,2.02355624,108700.0,108690.0,0.02533]
[1756768939282,2.02355624,108700.0,108690.0,0.001]
[1756768939990,1.77355624,108700.0,108690.0,0.001]
[1756768940183,1.77355624,108700.0,108670.0,0.11225998]
[1756768940184,2.26511248,108700.0,108670.0,0.11225998]
[1756768940490,0.60235624,108680.0,108670.0,0.14789998]
[1756768940680,0.941154,108680.0,108670.0,0.14789998]
[1756768941080,1.802314,108680.0,108670.0,0.06530998]
[1756768941291,1.802314,108680.0,108670.0,0.06930998]
[1756768941789,1.802314,108680.0,108670.0,0.09363998]
[1756768942290,1.81162223,108680.0,108670.0,0.02833]
[1756768942484,0.95046223,108680.0,108670.0,0.03033]
[1756768942792,1.81158223,108680.0,108670.0,0.05295]
[1756768943089,1.81158223,108680.0,108670.0,0.08859]
[1756768943290,1.57002599,108680.0,108670.0,0.08859]
[1756768943590,1.81158223,108680.0,108670.0,0.08859]
[1756768944783,0.95046223,108680.0,108670.0,0.08859]
[1756768944996,0.69959776,108680.0,108670.0,0.33859]
[1756768945290,0.37959776,108680.0,108670.0,0.33859]
[1756768945783,0.73959776,108680.0,108670.0,0.33859]
[1756768946084,0.01879776,108680.0,108670.0,1.00625622]
[1756768946289,0.01879776,108680.0,108670.0,1.86729622]
[1756768946689,0.01879776,108680.0,108670.0,1.80194624]
[1756768946890,0.01879776,108680.0,108670.0,1.56039]
[1756768947089,0.01879776,108680.0,108670.0,0.69939]
[1756768948493,0.01879776,108680.0,108670.0,0.78110913]
[1756768948995,0.01879776,108680.0,108670.0,0.69939]
[1756768949492,0.01879776,108680.0,108670.0,0.53110913]
[1756768949790,1.02153287,108680.0,108670.0,1.01506354]
[1756768950195,1.02153287,108680.0,108670.0,0.40414354]
[1756768950694,0.38879776,108680.0,108670.0,0.40414354]
[1756768950894,0.32879776,108680.0,108670.0,0.40414354]
[1756768951197,0.70959776,108680.0,108670.0,0.40414354]
[1756768951395,0.73959776,108680.0,108670.0,0.40414354]
[1756768952493,0.37959776,108680.0,108670.0,0.40414354]
[1756768952698,0.01879776,108680.0,108670.0,1.06687865]
[1756768953193,0.01879776,108680.0,108670.0,1.17506144]
[1756768953399,0.01879776,108680.0,108670.0,1.08304424]
[1756768953693,0.3608,108700.0,108670.0,1.08304424]
[1756768953899,0.7308,108700.0,108690.0,0.14817155]
[1756768956898,0.7308,108700.0,108690.0,0.14917155]
[1756768958890,1.03273511,108700.0,108690.0,0.14917155]
[1756768959090,1.03273511,108700.0,108690.0,0.06658155]
[1756768959389,2.14325511,108700.0,108690.0,0.06658155]
[1756768959998,2.14325511,108700.0,108690.0,0.001]
[1756768965010,1.03273511,108700.0,108690.0,0.08451]
[1756768965503,1.59108,108700.0,108690.0,0.15009155]
[1756768966707,0.7308,108700.0,108690.0,0.15009155]
[1756768967304,0.7308,108700.0,108690.0,0.08451]
[1756768967898,1.03273511,108700.0,108690.0,0.08451]
[1756768968393,0.7308,108700.0,108690.0,0.08451]
[1756768968609,1.03273511,108700.0,108690.0,0.08451]
[1756768970010,0.97231456,108700.0,108690.0,0.08451]
[1756768973001,0.7308,108700.0,108690.0,0.08451]
[1756768973202,0.97231456,108700.0,108690.0,0.15009155]
[1756768980614,0.7308,108700.0,108690.0,0.15009155]
[1756768980815,0.97231456,108700.0,108690.0,0.15009155]
[1756768981213,0.7308,108700.0,108690.0,0.15009155]
[1756768981414,0.97231456,108700.0,108690.0,0.15009155]
[1756768985819,0.97231456,108700.0,108690.0,0.11390155]
[1756768986717,2.08175456,108700.0,108690.0,0.06658155]
[1756768986919,2.32326912,108700.0,108690.0,0.001]
[1756768987130,1.22231456,108700.0,108690.0,0.001]
[1756768987413,1.22231456,108700.0,108690.0,0.02512]
[1756768987617,2.08167456,108700.0,108690.0,0.04971]
[1756768987821,2.08167456,108700.0,108690.0,0.001]
[1756768988622,2.08163456,108700.0,108690.0,0.001]
[1756768988821,2.08163456,108700.0,108690.0,0.02512]
[1756768989323,2.08163456,108700.0,108690.0,0.001]
[1756768992421,2.08163456,108700.0,108690.0,0.06658155]
[1756768993622,2.08163456,108700.0,108690.0,0.11529155]
[1756768995320,2.08163456,108700.0,108690.0,0.09070155]
[1756768995521,2.08163456,108700.0,108690.0,0.06658155]
[1756768995924,2.08163456,108700.0,108690.0,0.15056155]
[1756768995925,0.7308,108700.0,108690.0,0.15056155]
[1756768996128,1.83135456,108700.0,108690.0,0.15056155]
[1756768996318,0.97231456,108700.0,108690.0,0.15056155]
[1756768996519,1.83135456,108700.0,108690.0,0.15056155]
[1756768997812,1.83135456,108700.0,108690.0,0.06658155]
[1756768998522,0.97231456,108700.0,108690.0,0.06658155]
[1756768998727,0.97231456,108700.0,108690.0,0.15056155]
[1756768999026,1.83123456,108700.0,108690.0,0.15056155]
[1756769000327,1.83123456,108700.0,108690.0,0.11529155]
[1756769002528,0.97231456,108700.0,108690.0,0.11529155]
[1756769004128,0.97231456,108700.0,108690.0,0.15056155]
[1756769004329,0.97231456,108700.0,108690.0,0.11529155]
[1756769006123,0.7308,108700.0,108690.0,0.15056155]
[1756769006329,0.97231456,108700.0,108690.0,0.15056155]
[1756769006734,0.7308,108700.0,108690.0,0.15056155]
[1756769006924,0.97231456,108700.0,108690.0,0.15056155]
[1756769007424,0.7308,108700.0,108690.0,0.64207611]
[1756769008231,0.37,108700.0,108690.0,0.93729456]
[1756769008429,0.37,108700.0,108690.0,1.80488699]
[1756769009028,0.37,108700.0,108690.0,1.79585456]
[1756769010428,0.37,108700.0,108690.0,1.86152638]
[1756769010935,0.37,108700.0,108690.0,1.79585456]
[1756769012530,0.37,108700.0,108690.0,1.80492676]
[1756769014626,0.37,108700.0,108690.0,1.88664589]
[1756769015320,0.37,108700.0,108690.0,0.77749913]
[1756769015526,0.37,108700.0,108690.0,1.87725369]
[1756769015725,0.97231456,108700.0,108690.0,0.41669913]
[1756769015925,0.97231456,108700.0,108690.0,1.27489913]
[1756769017727,0.61151456,108700.0,108690.0,0.41669913]
[1756769017927,0.61151456,108700.0,108690.0,1.27485913]
[1756769018225,0.61151456,108700.0,108690.0,1.27477913]
[1756769019636,0.37,108700.0,108690.0,1.27477913]
[1756769021429,0.37,108700.0,108690.0,1.19306]
[1756769022939,0.37,108700.0,108690.0,1.43457456]
[1756769024031,0.37,108700.0,108690.0,1.19306]
[1756769024339,0.37,108700.0,108690.0,1.27449913]
[1756769024537,0.37,108700.0,108690.0,0.41669913]
[1756769024741,0.37,108700.0,108690.0,1.27445913]
[1756769024930,0.61151456,108700.0,108690.0,1.27445913]
[1756769026039,0.61151456,108700.0,108690.0,0.41669913]
[1756769026343,0.61151456,108700.0,108690.0,1.27437913]
[1756769027943,0.17,108700.0,108690.0,1.87669369]
[1756769028341,0.17,108700.0,108690.0,1.01901369]
[1756769028536,0.17,108700.0,108690.0,1.51581369]
[1756769028839,0.17,108700.0,108690.0,1.87661369]
[1756769029344,0.37973226,108710.0,108700.0,0.09622]
[1756769029539,0.65973226,108710.0,108700.0,0.40325671]
[1756769030335,0.29893226,108710.0,108700.0,0.69853456]
[1756769030536,0.29993226,108710.0,108700.0,0.69853456]
[1756769030741,0.29993226,108710.0,108700.0,0.94853456]
[1756769031044,0.29993226,108710.0,108700.0,1.03025369]
[1756769031344,0.29993226,108710.0,108700.0,1.63773369]
[1756769031542,0.30093226,108710.0,108700.0,1.63773369]
[1756769032037,0.032,108710.0,108700.0,1.03025369]
[1756769032344,0.032,108710.0,108700.0,1.52685369]
[1756769032543,0.032,108710.0,108700.0,1.88765369]
[1756769033335,0.031,108710.0,108700.0,1.88765369]
[1756769033745,0.001,108710.0,108700.0,1.88765369]
[1756769034145,0.001,108710.0,108700.0,1.03025369]
[1756769034344,0.001,108710.0,108700.0,1.88761369]
[1756769034546,0.6849607,108730.0,108720.0,0.04791]
[1756769034844,1.0049607,108730.0,108720.0,0.93936]
[1756769035543,1.0069607,108730.0,108720.0,0.93936]
[1756769035730,0.92431456,108730.0,108720.0,0.93936]
[1756769036031,0.92631456,108730.0,108720.0,0.93936]
[1756769036638,0.92631456,108730.0,108720.0,0.08208]
[1756769037043,0.92631456,108730.0,108710.0,0.14752244]
[1756769037344,0.24151456,108720.0,108710.0,0.71980244]
[1756769037544,0.62151456,108720.0,108710.0,0.71980244]
[1756769037838,0.62151456,108720.0,108710.0,0.14752244]
[1756769038041,0.62151456,108720.0,108710.0,1.00464244]
[1756769038643,0.62251456,108720.0,108710.0,1.00464244]
[1756769038845,0.87251456,108720.0,108710.0,1.00464244]
[1756769039246,0.62251456,108720.0,108710.0,1.00464244]
[1756769039642,0.381,108720.0,108710.0,1.246157]
[1756769039836,0.381,108720.0,108710.0,1.26647585]
[1756769040037,0.382,108720.0,108710.0,1.26647585]
[1756769040248,0.382,108720.0,108710.0,1.62727585]
[1756769041038,0.382,108720.0,108710.0,1.26647585]
[1756769041445,0.382,108720.0,108710.0,0.40935585]
[1756769041639,0.382,108720.0,108710.0,1.02476129]
[1756769041943,0.381,108720.0,108710.0,1.02476129]
[1756769042147,0.38,108720.0,108710.0,1.02576129]
[1756769042446,0.38,108720.0,108710.0,1.26727585]
[1756769042647,0.381,108720.0,108710.0,1.26727585]
[1756769042839,0.381,108720.0,108710.0,1.62807585]
[1756769043445,0.381,108720.0,108710.0,0.52964129]
[1756769043648,0.62251456,108720.0,108710.0,1.38652129]
[1756769043840,0.62351456,108720.0,108710.0,1.38552129]
[1756769044040,0.62351456,108720.0,108710.0,1.45815508]
[1756769044544,0.382,108720.0,108710.0,1.45815508]
[1756769044849,0.382,108720.0,108710.0,1.09735508]
[1756769045846,0.382,108720.0,108710.0,0.24047508]
[1756769046043,0.382,108720.0,108710.0,1.09723508]
[1756769046948,0.383266,108720.0,108710.0,1.09723508]
[1756769047438,0.383266,108720.0,108710.0,0.24047508]
[1756769047639,0.383266,108720.0,108710.0,1.09715508]
[1756769049451,0.383266,108720.0,108710.0,0.24047508]
[1756769049652,0.383266,108720.0,108710.0,1.09707508]
[1756769050352,0.383266,108720.0,108710.0,1.33858964]
[1756769053353,0.383266,108720.0,108710.0,1.2731472]
[1756769054047,0.383266,108720.0,108710.0,1.7810892]
[1756769054252,0.383266,108720.0,108710.0,1.6339472]
[1756769058351,0.383266,108720.0,108710.0,0.53583264]
[1756769058556,0.383266,108720.0,108710.0,1.71526633]
[1756769059652,0.383266,108720.0,108710.0,0.61755177]
[1756769059857,0.383266,108720.0,108710.0,1.47371177]
[1756769060658,0.383266,108720.0,108710.0,0.61755177]
[1756769060858,0.744066,108720.0,108710.0,1.11287177]
[1756769061162,0.98558056,108720.0,108710.0,1.11287177]
[1756769061554,0.98558056,108720.0,108710.0,1.04023798]
[1756769066469,0.744066,108720.0,108710.0,1.04023798]
[1756769066670,0.383266,108720.0,108710.0,1.28175254]
[1756769067369,0.383266,108720.0,108710.0,1.04023798]
[1756769067570,0.383266,108720.0,108710.0,1.28175254]
[1756769067765,0.383266,108720.0,108710.0,1.01991913]
[1756769068372,0.383266,108720.0,108710.0,1.09456889]
[1756769069971,0.383266,108720.0,108710.0,1.33608345]
[1756769070863,0.383266,108720.0,108710.0,0.47996345]
[1756769071066,0.383266,108720.0,108710.0,1.09420889]
[1756769072174,0.383266,108720.0,108710.0,1.09416889]
[1756769072974,0.383266,108720.0,108710.0,1.33568345]
[1756769074274,0.383266,108720.0,108710.0,1.58568345]
[1756769074469,0.383266,108720.0,108710.0,1.96568345]
[1756769074670,0.053266,108720.0,108710.0,2.32648345]
[1756769075075,0.053266,108720.0,108710.0,1.94648345]
[1756769075576,0.002266,108720.0,108710.0,1.94648345]
[1756769075977,0.001266,108720.0,108710.0,1.94748345]
[1756769077971,0.001266,108720.0,108710.0,1.70596889]
[1756769078175,0.001266,108720.0,108710.0,1.94748345]
[1756769082778,0.001266,108720.0,108710.0,1.70552889]
[1756769082977,0.62278056,108720.0,108710.0,1.09472889]
[1756769083179,0.56278056,108720.0,108710.0,1.09472889]
[1756769083578,0.321266,108720.0,108710.0,1.09472889]
[1756769084372,0.321266,108720.0,108710.0,0.23944889]
[1756769084572,0.321266,108720.0,108710.0,1.09468889]
[1756769085779,0.321266,108720.0,108710.0,0.23944889]
[1756769085970,0.041266,108720.0,108710.0,1.09460889]
[1756769086372,0.371266,108720.0,108710.0,1.09460889]
[1756769088789,0.011266,108720.0,108710.0,1.09460889]
[1756769089286,0.011266,108720.0,108710.0,1.33612345]
[1756769092088,0.011266,108720.0,108710.0,1.09460889]
[1756769092284,0.011266,108720.0,108710.0,1.33612345]
[1756769095287,0.011266,108720.0,108710.0,1.25440432]
[1756769095890,0.011266,108720.0,108710.0,1.61520432]
[1756769096194,0.011266,108720.0,108710.0,1.72970107]
[1756769097487,0.011266,108720.0,108710.0,2.33970107]
[1756769097690,0.011266,108720.0,108710.0,1.97970107]
[1756769098293,0.001266,108720.0,108710.0,2.69319903]
[1756769098497,0.00933514,108740.0,108730.0,0.04598]
[1756769098692,0.35,108740.0,108730.0,1.24251716]
[1756769099092,0.35,108740.0,108730.0,1.0009626]
[1756769099491,0.35,108740.0,108730.0,0.93557]
[1756769099692,0.352,108740.0,108730.0,0.93557]
[1756769100089,0.36299365,108740.0,108730.0,0.93557]
[1756769100399,0.36299365,108740.0,108730.0,0.08085]
[1756769100696,0.96530821,108740.0,108730.0,0.93553]
[1756769100897,1.21530821,108740.0,108730.0,0.93553]
[1756769101388,1.21530821,108740.0,108730.0,0.08085]
[1756769101594,1.21530821,108740.0,108730.0,0.93549]
[1756769101793,1.21530821,108740.0,108730.0,0.08085]
[1756769102498,1.21530821,108740.0,108730.0,0.14622427]
[1756769107107,0.96530821,108740.0,108730.0,0.14622427]
[1756769107505,0.72379365,108740.0,108730.0,0.14622427]
[1756769107803,0.96530821,108740.0,108730.0,0.14622427]
[1756769111704,0.95631456,108740.0,108730.0,0.14622427]
[1756769112109,0.7148,108740.0,108730.0,0.14622427]
[1756769112305,0.7148,108740.0,108730.0,0.38773883]
[1756769114612,0.7148,108740.0,108730.0,0.14622427]
[1756769117111,0.95631456,108740.0,108730.0,0.11135427]
[1756769117306,0.95631456,108740.0,108730.0,0.14824427]
[1756769120611,0.7148,108740.0,108730.0,0.38975883]
[1756769122121,0.7148,108740.0,108730.0,0.14824427]
[1756769123904,0.95631456,108740.0,108730.0,0.14824427]
[1756769126710,0.95631456,108740.0,108730.0,0.08862427]
[1756769127114,0.95631456,108740.0,108730.0,0.11307427]
[1756769135032,0.7148,108740.0,108730.0,0.08862427]
[1756769135226,0.95631456,108740.0,108730.0,0.08862427]
[1756769136529,0.7148,108740.0,108730.0,0.14912427]
[1756769136833,0.354,108740.0,108730.0,0.39063883]
[1756769137029,0.7148,108740.0,108730.0,0.39063883]
[1756769137432,0.7128,108740.0,108730.0,0.39063883]
[1756769137633,0.351,108740.0,108730.0,0.39063883]
[1756769137817,0.352,108740.0,108730.0,0.39063883]
[1756769138026,0.352,108740.0,108730.0,0.32526456]
[1756769138527,0.352,108740.0,108730.0,0.57526456]
[1756769139229,0.352,108740.0,108730.0,1.01781285]
[1756769140529,0.35,108740.0,108730.0,1.01881285]
[1756769141128,0.35,108740.0,108730.0,0.77729829]
[1756769141330,0.35,108740.0,108730.0,1.87205285]
[1756769142230,0.35,108740.0,108730.0,1.01881285]
[1756769142421,0.95231456,108740.0,108730.0,1.26969829]